[Event "Titled Tuesday Blitz June 20 Late 2023"]
[White "Kovalevsky, Stanislav"]
[Black "Czerw, Dawid"]
[WhiteFideId "13508598"]
[BlackFideId "1145746"]
[WhiteElo "2112"]
[BlackElo "2144"]
[Result "1-0"]
[Round "10"]
[TimeControl "180+2"]
[Date "2023.06.20"]
[WhiteClock "0:00:19"]
[BlackClock "0:00:04"]
[Board "41"]

1. c4 {[%clk 0:03:00]}  c6 {[%clk 0:02:59]} 2. e4 {[%clk 0:03:00]}  g6 {[%clk 0:02:58]} 3. Nc3 {[%clk 0:03:00]}  Bg7 {[%clk 0:02:58]} 4. g3 {[%clk 0:03:01]}  d6 {[%clk 0:02:58]} 5. Bg2 {[%clk 0:03:01]}  Nd7 {[%clk 0:02:59]} 6. d3 {[%clk 0:03:01]}  Ngf6 {[%clk 0:02:59]} 7. Nge2 {[%clk 0:03:00]}  O-O {[%clk 0:03:00]} 8. O-O {[%clk 0:03:01]}  e5 {[%clk 0:03:00]} 9. b4 {[%clk 0:03:00]}  a5 {[%clk 0:03:00]} 10. b5 {[%clk 0:03:01]}  Nc5 {[%clk 0:02:59]} 11. Ba3 {[%clk 0:03:00]}  Nfd7 {[%clk 0:02:59]} 12. Rb1 {[%clk 0:02:59]}  f5 {[%clk 0:02:57]} 13. bxc6 {[%clk 0:02:58]}  bxc6 {[%clk 0:02:57]} 14. exf5 {[%clk 0:02:58]}  gxf5 {[%clk 0:02:57]} 15. Bxc6 {[%clk 0:02:58]}  Ra7 {[%clk 0:02:52]} 16. Bd5+ {[%clk 0:02:50]}  Kh8 {[%clk 0:02:52]} 17. d4 {[%clk 0:02:51]}  exd4 {[%clk 0:02:50]} 18. Nb5 {[%clk 0:02:49]}  Ra6 {[%clk 0:02:47]} 19. Nbxd4 {[%clk 0:02:48]}  Ne5 {[%clk 0:02:46]} 20. Nf4 {[%clk 0:02:37]}  Qf6 {[%clk 0:02:26]} 21. Nh5 {[%clk 0:02:08]}  Qh6 {[%clk 0:02:15]} 22. Bc1 {[%clk 0:01:45]}  Qg6 {[%clk 0:02:11]} 23. Nxg7 {[%clk 0:01:35]}  Qxg7 {[%clk 0:02:08]} 24. Rb8 {[%clk 0:01:28]}  Ned7 {[%clk 0:01:47]} 25. Rb1 {[%clk 0:01:11]}  f4 {[%clk 0:01:36]} 26. Kh1 {[%clk 0:00:53]}  fxg3 {[%clk 0:01:31]} 27. fxg3 {[%clk 0:00:45]}  Nf6 {[%clk 0:01:28]} 28. Bg2 {[%clk 0:00:37]}  Ra7 {[%clk 0:01:25]} 29. Nf5 {[%clk 0:00:28]}  Bxf5 {[%clk 0:01:15]} 30. Rxf5 {[%clk 0:00:29]}  Nce4 {[%clk 0:00:57]} 31. Bb2 {[%clk 0:00:21]}  Re7 {[%clk 0:00:49]} 32. Qf3 {[%clk 0:00:20]}  Nd2 {[%clk 0:00:40]} 33. Bxf6 {[%clk 0:00:19]}  Rxf6 {[%clk 0:00:17]} 34. Qa8+ {[%clk 0:00:19]}  Qg8 {[%clk 0:00:16]} 35. Rb8 {[%clk 0:00:17]}  Re1+ {[%clk 0:00:10]} 36. Bf1 {[%clk 0:00:17]}  Rxf1+ {[%clk 0:00:10]} 37. Rxf1 {[%clk 0:00:16]}  Rxf1+ {[%clk 0:00:10]} 38. Kg2 {[%clk 0:00:17]}  Qxb8 {[%clk 0:00:05]} 39. Qxb8+ {[%clk 0:00:18]}  Kg7 {[%clk 0:00:06]} 40. Qc7+ {[%clk 0:00:17]}  Kg6 {[%clk 0:00:05]} 41. Qxd6+ {[%clk 0:00:18]}  Rf6 {[%clk 0:00:05]} 42. Qxd2 {[%clk 0:00:18]}  Kf7 {[%clk 0:00:05]} 43. Qd5+ {[%clk 0:00:18]}  Ke7 {[%clk 0:00:06]} 44. c5 {[%clk 0:00:19]}  Re6 {[%clk 0:00:06]} 45. c6 {[%clk 0:00:17]}  Rd6 {[%clk 0:00:05]} 46. Qe5+ {[%clk 0:00:18]}  Re6 {[%clk 0:00:06]} 47. Qc7+ {[%clk 0:00:18]}  Kf6 {[%clk 0:00:06]} 48. Qb7 {[%clk 0:00:18]}  Re2+ {[%clk 0:00:06]} 49. Kh3 {[%clk 0:00:19]}  Rb2 {[%clk 0:00:04]} 50. Qxb2+ {[%clk 0:00:19]} 1-0


[Site "https://www.chess.com"]

[Event "Titled Tuesday Blitz June 20 Late 2023"]
[White "Avila Pavas, Santiago"]
[Black "Isajevsky, Anton"]
[WhiteFideId "4437128"]
[BlackFideId "4142500"]
[WhiteElo "2449"]
[BlackElo "2510"]
[Result "0-1"]
[Round "10"]
[TimeControl "180+2"]
[Date "2023.06.20"]
[WhiteClock "0:00:15"]
[BlackClock "0:00:11"]
[Board "42"]

1. d4 {[%clk 0:03:00]}  d5 {[%clk 0:02:55]} 2. Nf3 {[%clk 0:03:00]}  Nf6 {[%clk 0:02:54]} 3. Bg5 {[%clk 0:03:01]}  e6 {[%clk 0:02:51]} 4. Nbd2 {[%clk 0:03:01]}  Be7 {[%clk 0:02:36]} 5. e3 {[%clk 0:03:01]}  h6 {[%clk 0:02:22]} 6. Bh4 {[%clk 0:03:01]}  c5 {[%clk 0:02:08]} 7. c3 {[%clk 0:03:01]}  O-O {[%clk 0:02:06]} 8. Bd3 {[%clk 0:03:01]}  b6 {[%clk 0:02:06]} 9. e4 {[%clk 0:02:59]}  Ba6 {[%clk 0:01:59]} 10. Qe2 {[%clk 0:02:40]}  Bxd3 {[%clk 0:01:55]} 11. Qxd3 {[%clk 0:02:41]}  Nc6 {[%clk 0:01:54]} 12. dxc5 {[%clk 0:02:38]}  dxe4 {[%clk 0:01:38]} 13. Qxd8 {[%clk 0:02:37]}  Rfxd8 {[%clk 0:01:32]} 14. Bxf6 {[%clk 0:02:34]}  gxf6 {[%clk 0:01:30]} 15. Nxe4 {[%clk 0:02:33]}  f5 {[%clk 0:01:30]} 16. Ned2 {[%clk 0:02:26]}  Bxc5 {[%clk 0:01:29]} 17. Ke2 {[%clk 0:02:22]}  Rd5 {[%clk 0:01:20]} 18. Nb3 {[%clk 0:02:22]}  Rad8 {[%clk 0:01:15]} 19. Nxc5 {[%clk 0:02:21]}  Rxc5 {[%clk 0:01:09]} 20. Rad1 {[%clk 0:02:20]}  Rcd5 {[%clk 0:01:08]} 21. Rxd5 {[%clk 0:02:16]}  Rxd5 {[%clk 0:01:09]} 22. c4 {[%clk 0:02:16]}  Rd6 {[%clk 0:00:59]} 23. a3 {[%clk 0:02:06]}  Kf8 {[%clk 0:00:54]} 24. Ke3 {[%clk 0:02:02]}  a5 {[%clk 0:00:53]} 25. Rc1 {[%clk 0:02:01]}  Ke7 {[%clk 0:00:49]} 26. c5 {[%clk 0:02:01]}  bxc5 {[%clk 0:00:47]} 27. Rxc5 {[%clk 0:02:02]}  f6 {[%clk 0:00:38]} 28. Rb5 {[%clk 0:01:51]}  e5 {[%clk 0:00:36]} 29. h3 {[%clk 0:01:30]}  f4+ {[%clk 0:00:28]} 30. Ke2 {[%clk 0:01:27]}  Ke6 {[%clk 0:00:29]} 31. Rb6 {[%clk 0:01:18]}  Kd5 {[%clk 0:00:11]} 32. Rb7 {[%clk 0:01:00]}  e4 {[%clk 0:00:11]} 33. Nh4 {[%clk 0:01:00]}  Nd4+ {[%clk 0:00:12]} 34. Kf1 {[%clk 0:01:01]}  Kc4 {[%clk 0:00:12]} 35. Re7 {[%clk 0:00:55]}  Kd3 {[%clk 0:00:11]} 36. Ng6 {[%clk 0:00:55]}  f3 {[%clk 0:00:07]} 37. Nf4+ {[%clk 0:00:55]}  Kc2 {[%clk 0:00:07]} 38. Rxe4 {[%clk 0:00:56]}  Kxb2 {[%clk 0:00:07]} 39. a4 {[%clk 0:00:45]}  Kb3 {[%clk 0:00:06]} 40. gxf3 {[%clk 0:00:42]}  f5 {[%clk 0:00:04]} 41. Re5 {[%clk 0:00:31]}  Kxa4 {[%clk 0:00:04]} 42. Nd3 {[%clk 0:00:29]}  Nb3 {[%clk 0:00:02]} 43. Nb2+ {[%clk 0:00:25]}  Kb4 {[%clk 0:00:02]} 44. Rxf5 {[%clk 0:00:25]}  a4 {[%clk 0:00:02]} 45. Rf4+ {[%clk 0:00:18]}  Nd4 {[%clk 0:00:03]} 46. Nd3+ {[%clk 0:00:14]}  Kb3 {[%clk 0:00:03]} 47. Nc5+ {[%clk 0:00:14]}  Ka3 {[%clk 0:00:02]} 48. Re4 {[%clk 0:00:11]}  Rd5 {[%clk 0:00:03]} 49. f4 {[%clk 0:00:11]}  Rxc5 {[%clk 0:00:03]} 50. Rxd4 {[%clk 0:00:11]}  Kb3 {[%clk 0:00:03]} 51. Rd8 {[%clk 0:00:08]}  Rc4 {[%clk 0:00:02]} 52. f5 {[%clk 0:00:07]}  a3 {[%clk 0:00:03]} 53. Rb8+ {[%clk 0:00:07]}  Rb4 {[%clk 0:00:02]} 54. Ra8 {[%clk 0:00:05]}  a2 {[%clk 0:00:03]} 55. f6 {[%clk 0:00:02]}  Ra4 {[%clk 0:00:02]} 56. Rb8+ {[%clk 0:00:03]}  Kc4 {[%clk 0:00:03]} 57. Rc8+ {[%clk 0:00:03]}  Kd5 {[%clk 0:00:02]} 58. f7 {[%clk 0:00:04]}  a1=Q+ {[%clk 0:00:02]} 59. Kg2 {[%clk 0:00:04]}  Qg7+ {[%clk 0:00:02]} 60. Kh2 {[%clk 0:00:05]}  Qxf7 {[%clk 0:00:03]} 61. Rd8+ {[%clk 0:00:06]}  Ke6 {[%clk 0:00:03]} 62. Rd2 {[%clk 0:00:07]}  Kf6 {[%clk 0:00:04]} 63. Kg2 {[%clk 0:00:08]}  Kg7 {[%clk 0:00:04]} 64. Rd3 {[%clk 0:00:09]}  Ra6 {[%clk 0:00:04]} 65. Rg3+ {[%clk 0:00:09]}  Rg6 {[%clk 0:00:05]} 66. Kh2 {[%clk 0:00:10]}  Rxg3 {[%clk 0:00:05]} 67. Kxg3 {[%clk 0:00:11]}  Kg6 {[%clk 0:00:06]} 68. h4 {[%clk 0:00:12]}  h5 {[%clk 0:00:07]} 69. f4 {[%clk 0:00:13]}  Qf5 {[%clk 0:00:08]} 70. Kg2 {[%clk 0:00:13]}  Qg4+ {[%clk 0:00:08]} 71. Kh2 {[%clk 0:00:14]}  Kf5 {[%clk 0:00:09]} 72. Kh1 {[%clk 0:00:13]}  Kxf4 {[%clk 0:00:10]} 73. Kh2 {[%clk 0:00:14]}  Kf3 {[%clk 0:00:11]} 74. Kh1 {[%clk 0:00:15]}  Qg2# {[%clk 0:00:11]} 0-1


[Site "https://www.chess.com"]

[Event "Titled Tuesday Blitz June 20 Late 2023"]
[White "Goltsev, Dmitry"]
[Black "Mendez Fortes, Eduardo Jesus"]
[WhiteFideId "24176710"]
[BlackFideId "3502376"]
[WhiteElo "2356"]
[BlackElo "2307"]
[Result "1-0"]
[Round "10"]
[TimeControl "180+2"]
[Date "2023.06.20"]
[WhiteClock "0:00:34"]
[BlackClock "0:00:04"]
[Board "43"]

1. e4 {[%clk 0:02:49]}  c5 {[%clk 0:02:59]} 2. Nf3 {[%clk 0:02:48]}  d6 {[%clk 0:03:00]} 3. d4 {[%clk 0:02:49]}  cxd4 {[%clk 0:03:00]} 4. Nxd4 {[%clk 0:02:50]}  Nf6 {[%clk 0:03:01]} 5. Nc3 {[%clk 0:02:50]}  a6 {[%clk 0:03:01]} 6. f3 {[%clk 0:02:50]}  e5 {[%clk 0:03:01]} 7. Nb3 {[%clk 0:02:50]}  Be6 {[%clk 0:03:01]} 8. Be3 {[%clk 0:02:50]}  Be7 {[%clk 0:03:00]} 9. Nd5 {[%clk 0:02:49]}  Nbd7 {[%clk 0:02:55]} 10. c4 {[%clk 0:02:48]}  O-O {[%clk 0:02:52]} 11. Bd3 {[%clk 0:02:48]}  b5 {[%clk 0:02:40]} 12. Nxe7+ {[%clk 0:02:46]}  Qxe7 {[%clk 0:02:40]} 13. cxb5 {[%clk 0:02:44]}  axb5 {[%clk 0:02:41]} 14. O-O {[%clk 0:02:32]}  d5 {[%clk 0:02:40]} 15. Bxb5 {[%clk 0:02:27]}  d4 {[%clk 0:02:29]} 16. Bg5 {[%clk 0:02:24]}  Qb4 {[%clk 0:02:13]} 17. Bd3 {[%clk 0:02:17]}  Rxa2 {[%clk 0:02:05]} 18. Rxa2 {[%clk 0:02:05]}  Bxb3 {[%clk 0:02:04]} 19. Qa1 {[%clk 0:02:05]}  Bxa2 {[%clk 0:02:02]} 20. Qxa2 {[%clk 0:02:06]}  h6 {[%clk 0:01:44]} 21. Bh4 {[%clk 0:02:05]}  Rb8 {[%clk 0:01:44]} 22. Bc4 {[%clk 0:01:57]}  Qe7 {[%clk 0:01:31]} 23. Rb1 {[%clk 0:01:50]}  g5 {[%clk 0:01:30]} 24. Be1 {[%clk 0:01:45]}  Kg7 {[%clk 0:01:04]} 25. b4 {[%clk 0:01:44]}  g4 {[%clk 0:00:58]} 26. Kh1 {[%clk 0:01:24]}  Nb6 {[%clk 0:00:46]} 27. Bb3 {[%clk 0:01:17]}  gxf3 {[%clk 0:00:28]} 28. gxf3 {[%clk 0:01:15]}  Nh5 {[%clk 0:00:26]} 29. Bd2 {[%clk 0:01:11]}  Nf4 {[%clk 0:00:24]} 30. Bxf4 {[%clk 0:01:08]}  exf4 {[%clk 0:00:25]} 31. Rg1+ {[%clk 0:01:07]}  Kh8 {[%clk 0:00:25]} 32. Bxf7 {[%clk 0:01:05]}  Nd7 {[%clk 0:00:20]} 33. Qd5 {[%clk 0:01:01]}  Ne5 {[%clk 0:00:20]} 34. Qxd4 {[%clk 0:00:47]}  Rxb4 {[%clk 0:00:19]} 35. Qc3 {[%clk 0:00:43]}  Kh7 {[%clk 0:00:17]} 36. Bg8+ {[%clk 0:00:40]}  Kh8 {[%clk 0:00:17]} 37. Qc8 {[%clk 0:00:37]}  Qb7 {[%clk 0:00:15]} 38. Qf8 {[%clk 0:00:36]}  Ng4 {[%clk 0:00:04]} 39. Bf7+ {[%clk 0:00:33]}  Kh7 {[%clk 0:00:04]} 40. Qg8# {[%clk 0:00:34]} 1-0


[Site "https://www.chess.com"]

[Event "Titled Tuesday Blitz June 20 Late 2023"]
[White "Ghazarian, Kirk"]
[Black "Pinheiro, Iung Alicio de O."]
[WhiteFideId "30908604"]
[BlackFideId "2104350"]
[WhiteElo "2346"]
[BlackElo "2283"]
[Result "1-0"]
[Round "10"]
[TimeControl "180+2"]
[Date "2023.06.20"]
[WhiteClock "0:01:50"]
[BlackClock "0:00:00"]
[Board "44"]

1. d4 {[%clk 0:03:00]}  Nf6 {[%clk 0:02:58]} 2. Nf3 {[%clk 0:03:01]}  e6 {[%clk 0:02:56]} 3. Bf4 {[%clk 0:03:02]}  d5 {[%clk 0:02:55]} 4. e3 {[%clk 0:03:03]}  Bd6 {[%clk 0:02:55]} 5. Bd3 {[%clk 0:03:03]}  c5 {[%clk 0:02:43]} 6. c3 {[%clk 0:03:04]}  Qc7 {[%clk 0:02:41]} 7. Bxd6 {[%clk 0:03:01]}  Qxd6 {[%clk 0:02:41]} 8. Nbd2 {[%clk 0:03:01]}  Nbd7 {[%clk 0:02:37]} 9. O-O {[%clk 0:03:01]}  O-O {[%clk 0:02:24]} 10. e4 {[%clk 0:03:01]}  cxd4 {[%clk 0:02:23]} 11. cxd4 {[%clk 0:02:53]}  dxe4 {[%clk 0:02:17]} 12. Nxe4 {[%clk 0:02:54]}  Nxe4 {[%clk 0:02:16]} 13. Bxe4 {[%clk 0:02:54]}  Nf6 {[%clk 0:02:16]} 14. Bc2 {[%clk 0:02:54]}  b6 {[%clk 0:02:16]} 15. Qe2 {[%clk 0:02:47]}  Bb7 {[%clk 0:02:14]} 16. Rfd1 {[%clk 0:02:47]}  Rfd8 {[%clk 0:02:11]} 17. Rac1 {[%clk 0:02:43]}  Rac8 {[%clk 0:02:10]} 18. Bb3 {[%clk 0:02:41]}  g6 {[%clk 0:00:53]} 19. h3 {[%clk 0:02:36]}  Kg7 {[%clk 0:00:47]} 20. a3 {[%clk 0:02:31]}  Rxc1 {[%clk 0:00:47]} 21. Rxc1 {[%clk 0:02:32]}  Bxf3 {[%clk 0:00:45]} 22. Qxf3 {[%clk 0:02:32]}  Qxd4 {[%clk 0:00:45]} 23. Rd1 {[%clk 0:02:32]}  Qxb2 {[%clk 0:00:10]} 24. Rxd8 {[%clk 0:02:31]}  Qxa3 {[%clk 0:00:10]} 25. Rd1 {[%clk 0:02:26]}  a5 {[%clk 0:00:09]} 26. Bc4 {[%clk 0:02:20]}  Qc5 {[%clk 0:00:09]} 27. Be2 {[%clk 0:02:16]}  b5 {[%clk 0:00:08]} 28. Qe3 {[%clk 0:02:15]}  Qc6 {[%clk 0:00:05]} 29. Rc1 {[%clk 0:02:12]}  Qd6 {[%clk 0:00:05]} 30. Bxb5 {[%clk 0:02:10]}  Qb4 {[%clk 0:00:02]} 31. Be2 {[%clk 0:02:06]}  Nd5 {[%clk 0:00:02]} 32. Qe5+ {[%clk 0:02:04]}  Kh6 {[%clk 0:00:02]} 33. Kh2 {[%clk 0:01:53]}  Qd2 {[%clk 0:00:00]} 34. Rc4 {[%clk 0:01:50]} 1-0


[Site "https://www.chess.com"]

[Event "Titled Tuesday Blitz June 20 Late 2023"]
[White "Yuan, Qingyu"]
[Black "Karamsetty, Jeevan"]
[WhiteFideId "8609772"]
[BlackFideId "2025337"]
[WhiteElo "2359"]
[BlackElo "2131"]
[Result "1-0"]
[Round "10"]
[TimeControl "180+2"]
[Date "2023.06.20"]
[WhiteClock "0:00:36"]
[BlackClock "0:00:09"]
[Board "45"]

1. e4 {[%clk 0:03:00]}  e5 {[%clk 0:02:59]} 2. Nf3 {[%clk 0:03:01]}  d6 {[%clk 0:02:59]} 3. d4 {[%clk 0:03:01]}  exd4 {[%clk 0:02:59]} 4. Nxd4 {[%clk 0:03:02]}  Nf6 {[%clk 0:02:59]} 5. Nc3 {[%clk 0:03:03]}  Be7 {[%clk 0:03:00]} 6. g3 {[%clk 0:03:03]}  O-O {[%clk 0:03:00]} 7. Bg2 {[%clk 0:03:04]}  Nc6 {[%clk 0:03:01]} 8. O-O {[%clk 0:02:59]}  Bd7 {[%clk 0:02:59]} 9. b3 {[%clk 0:02:56]}  Nxd4 {[%clk 0:02:56]} 10. Qxd4 {[%clk 0:02:56]}  c5 {[%clk 0:02:56]} 11. Qd3 {[%clk 0:02:55]}  Bc6 {[%clk 0:02:55]} 12. a4 {[%clk 0:02:52]}  Qc7 {[%clk 0:02:55]} 13. Bb2 {[%clk 0:02:52]}  Rad8 {[%clk 0:02:55]} 14. Nd5 {[%clk 0:02:49]}  Nxd5 {[%clk 0:02:47]} 15. exd5 {[%clk 0:02:50]}  Bd7 {[%clk 0:02:48]} 16. Rfe1 {[%clk 0:02:37]}  Rfe8 {[%clk 0:02:48]} 17. Be4 {[%clk 0:02:37]}  h6 {[%clk 0:02:31]} 18. Qf3 {[%clk 0:02:24]}  Bf8 {[%clk 0:02:21]} 19. Re3 {[%clk 0:02:18]}  Re7 {[%clk 0:02:16]} 20. Rae1 {[%clk 0:02:16]}  Rde8 {[%clk 0:02:17]} 21. c4 {[%clk 0:02:12]}  Bc8 {[%clk 0:02:09]} 22. h4 {[%clk 0:02:04]}  Qd7 {[%clk 0:02:07]} 23. Bc2 {[%clk 0:01:41]}  Rxe3 {[%clk 0:02:04]} 24. Rxe3 {[%clk 0:01:41]}  Rxe3 {[%clk 0:01:58]} 25. Qxe3 {[%clk 0:01:42]}  Qg4 {[%clk 0:01:58]} 26. Qd3 {[%clk 0:01:38]}  f5 {[%clk 0:01:55]} 27. Bc1 {[%clk 0:01:33]}  Bd7 {[%clk 0:01:49]} 28. Bf4 {[%clk 0:01:30]}  g5 {[%clk 0:01:39]} 29. Bd1 {[%clk 0:01:26]}  Qh3 {[%clk 0:01:30]} 30. hxg5 {[%clk 0:01:26]}  hxg5 {[%clk 0:01:16]} 31. Bxg5 {[%clk 0:01:27]}  Bg7 {[%clk 0:01:16]} 32. Bf4 {[%clk 0:01:27]}  Bd4 {[%clk 0:01:12]} 33. Bxd6 {[%clk 0:01:27]}  Be8 {[%clk 0:01:04]} 34. Bf4 {[%clk 0:01:24]}  Qh7 {[%clk 0:00:52]} 35. Qe2 {[%clk 0:01:21]}  Bf7 {[%clk 0:00:49]} 36. Kg2 {[%clk 0:01:17]}  Qg6 {[%clk 0:00:44]} 37. Qe7 {[%clk 0:01:15]}  Qb6 {[%clk 0:00:40]} 38. d6 {[%clk 0:01:13]}  Kg7 {[%clk 0:00:24]} 39. Bf3 {[%clk 0:00:58]}  Bf6 {[%clk 0:00:21]} 40. Be5 {[%clk 0:00:58]}  Bxe5 {[%clk 0:00:18]} 41. Qxe5+ {[%clk 0:00:58]}  Kg6 {[%clk 0:00:18]} 42. d7 {[%clk 0:00:52]}  Qd8 {[%clk 0:00:15]} 43. Qd6+ {[%clk 0:00:51]}  Kg7 {[%clk 0:00:15]} 44. Bxb7 {[%clk 0:00:52]}  Bh5 {[%clk 0:00:06]} 45. Bc6 {[%clk 0:00:51]}  Kf7 {[%clk 0:00:04]} 46. a5 {[%clk 0:00:50]}  Bg6 {[%clk 0:00:02]} 47. a6 {[%clk 0:00:50]}  f4 {[%clk 0:00:02]} 48. g4 {[%clk 0:00:48]}  Bh7 {[%clk 0:00:02]} 49. Bd5+ {[%clk 0:00:48]}  Kg7 {[%clk 0:00:02]} 50. Qe5+ {[%clk 0:00:48]}  Kh6 {[%clk 0:00:02]} 51. Qe6+ {[%clk 0:00:43]}  Kg7 {[%clk 0:00:03]} 52. Qf7+ {[%clk 0:00:42]}  Kh6 {[%clk 0:00:04]} 53. Qe8 {[%clk 0:00:40]}  Qh4 {[%clk 0:00:05]} 54. Qh5+ {[%clk 0:00:40]}  Qxh5 {[%clk 0:00:05]} 55. gxh5 {[%clk 0:00:40]}  f3+ {[%clk 0:00:05]} 56. Kxf3 {[%clk 0:00:40]}  Kg5 {[%clk 0:00:06]} 57. d8=Q+ {[%clk 0:00:40]}  Kh6 {[%clk 0:00:07]} 58. Bf7 {[%clk 0:00:39]}  Be4+ {[%clk 0:00:08]} 59. Kxe4 {[%clk 0:00:38]}  Kg7 {[%clk 0:00:09]} 60. Bg6 {[%clk 0:00:38]}  Kh6 {[%clk 0:00:09]} 61. b4 {[%clk 0:00:37]}  cxb4 {[%clk 0:00:09]} 62. Kf5 {[%clk 0:00:35]}  b3 {[%clk 0:00:10]} 63. Qg8 {[%clk 0:00:35]}  b2 {[%clk 0:00:09]} 64. Qh7# {[%clk 0:00:36]} 1-0


[Site "https://www.chess.com"]

[Event "Titled Tuesday Blitz June 20 Late 2023"]
[White "Bilan, Danila"]
[Black "Salimova, Nurgyul"]
[WhiteFideId "24161918"]
[BlackFideId "2915138"]
[WhiteElo "2146"]
[BlackElo "2343"]
[Result "1-0"]
[Round "10"]
[TimeControl "180+2"]
[Date "2023.06.20"]
[WhiteClock "0:00:18"]
[BlackClock "0:00:00"]
[Board "47"]

1. d4 {[%clk 0:03:00]}  Nf6 {[%clk 0:02:59]} 2. Nf3 {[%clk 0:03:00]}  d5 {[%clk 0:02:57]} 3. c4 {[%clk 0:03:00]}  e6 {[%clk 0:02:54]} 4. Nc3 {[%clk 0:03:00]}  c6 {[%clk 0:02:50]} 5. Bg5 {[%clk 0:02:57]}  h6 {[%clk 0:02:48]} 6. Bh4 {[%clk 0:02:52]}  dxc4 {[%clk 0:02:45]} 7. e4 {[%clk 0:02:52]}  g5 {[%clk 0:02:44]} 8. Bg3 {[%clk 0:02:52]}  b5 {[%clk 0:02:43]} 9. h4 {[%clk 0:02:46]}  g4 {[%clk 0:02:32]} 10. Ne5 {[%clk 0:02:45]}  Qb6 {[%clk 0:02:19]} 11. Nxg4 {[%clk 0:02:12]}  Nxg4 {[%clk 0:02:08]} 12. Qxg4 {[%clk 0:02:13]}  Qxd4 {[%clk 0:01:58]} 13. Rd1 {[%clk 0:02:09]}  Qg7 {[%clk 0:01:49]} 14. Qh5 {[%clk 0:01:49]}  Nd7 {[%clk 0:01:35]} 15. Be2 {[%clk 0:01:39]}  Be7 {[%clk 0:01:28]} 16. O-O {[%clk 0:01:31]}  Rg8 {[%clk 0:01:24]} 17. Bf3 {[%clk 0:01:05]}  Bb7 {[%clk 0:01:01]} 18. Nxb5 {[%clk 0:00:58]}  Bc5 {[%clk 0:00:14]} 19. Rxd7 {[%clk 0:00:40]}  Kxd7 {[%clk 0:00:05]} 20. Qxc5 {[%clk 0:00:39]}  cxb5 {[%clk 0:00:03]} 21. Rd1+ {[%clk 0:00:39]}  Ke8 {[%clk 0:00:03]} 22. Qxb5+ {[%clk 0:00:37]}  Ke7 {[%clk 0:00:03]} 23. Bd6+ {[%clk 0:00:30]}  Kf6 {[%clk 0:00:03]} 24. Be5+ {[%clk 0:00:22]}  Kg6 {[%clk 0:00:03]} 25. Bxg7 {[%clk 0:00:22]}  Rab8 {[%clk 0:00:00]} 26. Be5 {[%clk 0:00:18]} 1-0


[Site "https://www.chess.com"]

[Event "Titled Tuesday Blitz June 20 Late 2023"]
[White "Nikologorsky, Matfei"]
[Black "Spata, German"]
[WhiteFideId "24102474"]
[BlackFideId "113026"]
[WhiteElo "2153"]
[BlackElo "2260"]
[Result "1-0"]
[Round "10"]
[TimeControl "180+2"]
[Date "2023.06.20"]
[WhiteClock "0:00:18"]
[BlackClock "0:00:00"]
[Board "51"]

1. e4 {[%clk 0:03:00]}  c5 {[%clk 0:02:57]} 2. Nf3 {[%clk 0:02:58]}  e6 {[%clk 0:02:57]} 3. d4 {[%clk 0:02:59]}  cxd4 {[%clk 0:02:58]} 4. Nxd4 {[%clk 0:02:59]}  Nf6 {[%clk 0:02:57]} 5. Nc3 {[%clk 0:02:59]}  Bb4 {[%clk 0:02:55]} 6. Bd3 {[%clk 0:02:36]}  d5 {[%clk 0:02:49]} 7. e5 {[%clk 0:02:26]}  Nfd7 {[%clk 0:02:50]} 8. Qe2 {[%clk 0:02:22]}  Nc6 {[%clk 0:02:45]} 9. Nxc6 {[%clk 0:02:20]}  bxc6 {[%clk 0:02:46]} 10. O-O {[%clk 0:02:20]}  O-O {[%clk 0:02:34]} 11. f4 {[%clk 0:02:15]}  c5 {[%clk 0:02:27]} 12. Qg4 {[%clk 0:02:11]}  c4 {[%clk 0:02:20]} 13. Be2 {[%clk 0:01:47]}  Rb8 {[%clk 0:02:05]} 14. Rf3 {[%clk 0:01:36]}  f5 {[%clk 0:01:57]} 15. Qh5 {[%clk 0:01:22]}  g6 {[%clk 0:01:45]} 16. Qh6 {[%clk 0:01:22]}  Nc5 {[%clk 0:01:36]} 17. Rh3 {[%clk 0:01:19]}  Rf7 {[%clk 0:01:27]} 18. Be3 {[%clk 0:01:15]}  a5 {[%clk 0:01:17]} 19. Kh1 {[%clk 0:00:53]}  Bd7 {[%clk 0:01:03]} 20. Nxd5 {[%clk 0:00:49]}  exd5 {[%clk 0:00:57]} 21. c3 {[%clk 0:00:49]}  Ne6 {[%clk 0:00:38]} 22. cxb4 {[%clk 0:00:47]}  axb4 {[%clk 0:00:35]} 23. Rd1 {[%clk 0:00:47]}  Qa5 {[%clk 0:00:34]} 24. Rg3 {[%clk 0:00:41]}  Qxa2 {[%clk 0:00:23]} 25. Rxd5 {[%clk 0:00:32]}  Qxb2 {[%clk 0:00:23]} 26. Bxc4 {[%clk 0:00:27]}  Rc8 {[%clk 0:00:15]} 27. Rxd7 {[%clk 0:00:20]}  Rxd7 {[%clk 0:00:15]} 28. Bxe6+ {[%clk 0:00:20]}  Kh8 {[%clk 0:00:12]} 29. h4 {[%clk 0:00:19]}  Rc1+ {[%clk 0:00:09]} 30. Kh2 {[%clk 0:00:19]}  Rd8 {[%clk 0:00:06]} 31. Rxg6 {[%clk 0:00:19]}  Rh1+ {[%clk 0:00:04]} 32. Kxh1 {[%clk 0:00:18]}  Rd1+ {[%clk 0:00:00]} 33. Kh2 {[%clk 0:00:18]} 1-0


[Site "https://www.chess.com"]